[Event "Israel-ch Youth U8-18 2024"]
[Site "Kfar Saba"]
[Date "2024.04.17"]
[Round "3.4"]
[White "Meirovich, Ilay"]
[Black "Duchan, Yoav"]
[Result "1/2-1/2"]
[ECO "E73"]
[WhiteElo "1880"]
[BlackElo "1980"]
[Annotator "TA"]
[PlyCount "159"]
[EventDate "2024.04.10"]
[EventType "swiss"]
[EventCountry "ISR"]
[SourceTitle "playchess.com"]
[Source "ChessBase"]
[SourceQuality "1"]
[TimeControl "5400+30"]

{[%evp 12,159,11,19,52,23,61,60,77,36,28,24,35,9,30,33,20,10,15,-50,-33,-79,-82,-71,-45,-99,-9,-14,-3,-129,-87,-95,0,0,2,-54,-51,-47,-41,-45,-48,-68,-54,-118,-108,-186,-175,-168,-144,-154,-150,-203,-193,-203,-199,-205,-214,-208,-218,-335,-316,-326,-326,-339,-351,-312,-156,-163,-161,-164,-162,-193,-183,-191,-191,-195,-181,-177,-173,-165,-157,-158,-158,-210,-228,-277,-277,-277,-277,-277,-275,-264,-260,-232,0,-97,-97,-97,-97,-97,-97,-97,-97,-97,-97,-97,-97,-97,-97,-97,-97,-97,-97,-97,-97,-97,-97,-97,-60,-60,-60,-60,-60,-60,0,-8,-8,-8,-10,-10,-10,-10,-24,-24,0,0,0,0,0,-4,0,0,0,0,0,0,0,0,0,0]} 1. d4 {[%emt 0:00:02]} g6 {[%emt 0:00:02]} 2. c4 {[%emt 0:00:06]} Bg7 {[%emt 0:00:03]} 3. Nc3 {[%emt 0:00:07]} d6 {[%emt 0:00:07]} 4. e4 {[%emt 0:00:05]} Nf6 {[%emt 0:00:03]} 5. Be2 {[%emt 1:32:40]} O-O {[%emt 0:01:04]} 6. h4 {[%emt 0:00:00]} c5 {[%emt 0:00:52]} 7. d5 {[%emt 0:00:00]} h5 {[%emt 0:02:20]} 8. Bg5 {[%emt 0:00:00]} b5 {[%emt 0:02:10]} 9. cxb5 {[%emt 0:00:00]} (9. Nxb5 Nxe4 10. Bd3 a6 11. Bxe4 axb5 $17) 9... a6 {[%emt 0:00:08] White is slightly better.} 10. Qd2 {[%emt 0:00:00]} axb5 {[%emt 0:00:39]} 11. Bxb5 {[%emt 0:00:00]} Ba6 {[%emt 0:01:51]} 12. Bxa6 {[%emt 0:00:00]} Nxa6 {[%emt 0:00:13]} 13. Nf3 {[%emt 0:00:00]} c4 {[%emt 0:02:53]} 14. O-O {[%emt 0:00:00]} Nc5 {[%emt 0:00:13]} 15. Rfe1 {[%emt 0:00:00]} (15. Qe2 $11) 15... Ng4 $15 {[%emt 0:09:58]} 16. Rab1 {[%emt 0:00:00]} (16. Nd4 $15) 16... Nd3 $17 {[%emt 0:05:02]} 17. Rf1 {[%emt 0:00:00]} Qb6 {[%emt 0:00:43]} 18. e5 {[%emt 0:00:00]} (18. Qc2 $1 $15) 18... Ndxe5 {[%emt 0:01:48]} (18... Ngxe5 $17 19. Nxe5 Bxe5 20. Bxe7 Rfb8) 19. Nxe5 $11 {[%emt 0:00:00]} Bxe5 {[%emt 0:01:48]} 20. Kh1 {[%emt 0:00:00]} (20. Bxe7 $11 Rfb8 21. Bg5) 20... Bd4 {[%emt 0:05:15]} 21. f3 {[%emt 0:00:00]} Be3 {[%emt 0:03:49]} (21... Nf2+ $1 $17 22. Rxf2 Bxc3 (22... Bxf2 23. Ne4 $17)) 22. Bxe3 {[%emt 0:00:00]} Nxe3 {[%emt 0:00:49]} 23. Qf2 {[%emt 0:00:00]} ({White should play} 23. Rfe1 $11 Nf5 24. Kh2) 23... Rfb8 $15 {[%emt 0:01:39]} 24. Rfe1 {[%emt 0:00:00]} Nf5 {[%emt 0:00:23]} 25. Qxb6 {[%emt 0:00:00]} Rxb6 {[%emt 0:00:05]} 26. Kh2 {[%emt 0:00:00]} Rab8 $36 {[%emt 0:03:15][%mdl 2048] Black is pushing.} (26... Nxh4 27. Re4 g5 28. Rxc4 $11) 27. Nd1 {[%emt 0:00:00]} ({White should try} 27. Re2 $15) 27... Rb5 $17 {[%emt 0:05:00]} (27... Nxh4 $6 28. Rxe7 Nf5 29. Rc7 $11) 28. Re4 {[%emt 0:00:15]} (28. Ne3 $17) 28... Rxd5 $19 {[%emt 0:01:10]} 29. Rxc4 {[%emt 0:01:07] [#]} Rxd1 $1 {[%emt 0:00:41][%mdl 512]} 30. Rxd1 {[%emt 0:00:07][%mdl 4096] Endgame. Rb1 would now be deadly. KRR-KRN} Ne3 $1 {[%emt 0:00:07]} (30... Rxb2 31. Ra1 Ne3 32. Rc8+ Kg7 33. a4 $11) 31. Rcc1 {[%emt 0:00:19]} (31. Rdd4 $17 Nxc4 (31... Rxb2 32. Rc7 $15) 32. Rxc4) 31... Nxd1 {[%emt 0:00:39]} (31... Rxb2 32. Rg1 Rxa2 33. Kh3 $15) 32. Rxd1 {[%emt 0:00:08]} Rxb2 {[%emt 0:00:03] KR-KR} 33. Ra1 {[%emt 0:00:05]} Rb4 {[%emt 0:00:56]} 34. Kg3 {[%emt 0:03:24]} Ra4 {[%emt 0:00:16]} 35. f4 {[%emt 0:00:25]} (35. Kf2 {might work better.}) 35... Kf8 {[%emt 0:00:27]} 36. Kf3 {[%emt 0:00:36]} Ke8 {[%emt 0:00:09]} 37. g3 {[%emt 0:00:20]} Kd7 {[%emt 0:00:23]} 38. a3 {[%emt 0:00:07]} Rc4 {[%emt 0:00:35]} ({Better is} 38... f6 $19 {White must now prevent ...e5.} 39. Ke2 Ke6) 39. a4 $17 {[%emt 0:02:32]} Kc6 {[%emt 0:00:48]} 40. Ra3 {[%emt 0:02:48]} Kb6 {[%emt 0:02:09]} 41. Rb3+ {[%emt 0:00:44]} Ka7 {[%emt 0:01:11]} 42. a5 {[%emt 0:01:36]} Rc5 {[%emt 0:04:43]} 43. Ra3 {[%emt 0:00:37]} Ka6 {[%emt 0:01:43]} 44. Rb3 {[%emt 0:00:06]} Rb5 {[%emt 0:04:09]} (44... Rxa5 45. Rb8) (44... Kxa5 45. Rb7 $11) 45. Rc3 {[%emt 0:00:54]} Kb7 {[%emt 0:00:18] Prevents Rc8.} ({Don't do} 45... Rxa5 46. Rc7 $17) 46. Ra3 {[%emt 0:00:09]} Rb4 {[%emt 0:00:08]} 47. a6+ {[%emt 0:00:58]} (47. Rc3 $17) 47... Ka7 $19 {[%emt 0:00:11]} 48. Re3 {[%emt 0:00:01]} e6 {[%emt 0:01:31]} ({Not} 48... Kxa6 49. Rxe7 Rb7 50. Re8 $17) 49. Rc3 {[%emt 0:00:06]} Kxa6 {[%emt 0:00:43]} 50. Rc7 {[%emt 0:00:12]} Rb7 $1 {[%emt 0:00:25]} 51. Rc6+ {[%emt 0:00:03]} Rb6 {[%emt 0:00:17]} 52. Rc7 {[%emt 0:00:05] [#]} Rb7 {[%emt 0:01:35]} (52... f5 $1 $19 {and Black stays clearly on top. Strongly threatening ...e5.} 53. Rg7 e5 (53... Rb3+ 54. Kg2 $11) 54. Rxg6 e4+ 55. Ke3 Kb5) 53. Rc6+ $1 $17 {[%emt 0:00:03]} Ka7 {[%emt 0:00:30]} 54. Rxd6 {[%emt 0:00:05] [#]} Kb8 $1 {[%emt 0:00:32]} 55. Ke4 {[%emt 0:02:00]} Kc7 {[%emt 0:00:18]} 56. Rd3 {[%emt 0:00:07]} Rb5 {[%emt 0:00:09]} 57. Ra3 {[%emt 0:02:18]} Kd7 {[%emt 0:00:56]} 58. Ra7+ {[%emt 0:00:14]} Ke8 {[%emt 0:00:04]} 59. Kf3 {[%emt 0:00:06]} Rd5 {[%emt 0:00:37]} 60. Rb7 {[%emt 0:00:20]} Rd7 {[%emt 0:00:04]} 61. Rb5 {[%emt 0:00:11]} Ke7 {[%emt 0:00:06]} 62. Rb6 {[%emt 0:00:10]} Kf6 {[%emt 0:00:42]} 63. Rb5 {[%emt 0:00:09]} Kg7 {[%emt 0:00:48]} 64. Ra5 {[%emt 0:00:16]} f6 {[%emt 0:00:48]} 65. Ra6 {[%emt 0:00:13]} Kf7 {[%emt 0:00:52]} 66. Rb6 {[%emt 0:00:10]} Rd3+ {[%emt 0:00:38]} 67. Kf2 {[%emt 0:00:11]} e5 {[%emt 0:00:18]} (67... Rd5 $15) 68. fxe5 $11 {[%emt 0:00:18]} fxe5 {[%emt 0:00:15]} 69. Rc6 {[%emt 0:00:12]} Rd7 {[%emt 0:00:36]} 70. Ke3 {[%emt 0:00:12]} Rd4 {[%emt 0:00:51]} 71. Rb6 {[%emt 0:00:17]} Rg4 {[%emt 0:00:36]} 72. Kf2 {[%emt 0:01:41]} g5 {[%emt 0:01:09]} 73. hxg5 {[%emt 0:00:12] The position is equal.} Rxg5 {[%emt 0:00:05]} 74. Rc6 {[%emt 0:00:06]} Rg6 {[%emt 0:00:13]} 75. Rc8 {[%emt 0:00:51]} Ke6 {[%emt 0:00:17]} 76. Rh8 {[%emt 0:00:21]} Rg5 {[%emt 0:00:17]} 77. Kf3 {[%emt 0:01:41]} Kd5 {[%emt 0:00:42]} 78. Rd8+ {[%emt 0:00:06]} Kc4 {[%emt 0:00:13]} 79. Ke4 {[%emt 0:00:18]} Kc3 {[%emt 0:00:59]} 80. Rd5 {[%emt 0:01:09] And White is the lucky defender.   Weighted Error Value: White=0.20 (precise) /Black=0.19 (very precise) .  Mistake:       	White=10    	Black=5      Inaccurate:     	White=2     	Black=4      OK:         	White=25    	Black=27     Best:        	White=2     	Black=8      Strong:       	White=1     	Black=3} 1/2-1/2

[Event "Israel-ch Youth U8-18 2024"]
[Site "Kfar Saba"]
[Date "2024.04.17"]
[Round "3.5"]
[White "Leib, Yoni"]
[Black "Beitner, Yehonatan"]
[Result "0-1"]
[ECO "A06"]
[WhiteElo "1972"]
[BlackElo "1877"]
[Annotator "TA"]
[PlyCount "102"]
[EventDate "2024.04.10"]
[EventType "swiss"]
[EventCountry "ISR"]
[SourceTitle "playchess.com"]
[Source "ChessBase"]
[SourceQuality "1"]
[TimeControl "5400+30"]

{[%evp 9,102,0,0,0,0,0,0,0,0,0,0,0,29,0,0,0,0,-9,6,0,18,32,26,29,60,55,49,-7,0,0,-16,-6,-21,-3,-26,-229,-233,-219,-223,-328,-211,-495,-516,-494,-452,-452,-243,-218,-213,-208,-178,-189,-213,-262,-277,-268,-269,-271,-267,-264,-261,-353,-239,-431,-231,-322,-333,-313,-304,-429,-290,-724,-475,-449,-495,-425,-314,-504,-475,-552,-525,-579,-557,-620,-581,-1020,-1020,-1012,-950,-29955,-29947,-12816,-7268,-6137,-12214]} 1. Nf3 {[%emt 0:01:01]} Nf6 {[%emt 0:00:07]} 2. b3 {[%emt 0:00:52]} d5 {[%emt 0:00:07]} 3. e3 {[%emt 0:00:30]} Bf5 {[%emt 0:00:07]} 4. h3 {[%emt 0:00:28]} h6 {[%emt 0:00:07]} 5. Bb2 {[%emt 0:01:34]} e6 {[%emt 0:00:07]} 6. d4 {[%emt 0:02:24]} Bd6 {[%emt 0:00:09]} 7. Bd3 {[%emt 0:02:10]} Ne4 {[%emt 0:00:23]} 8. O-O {[%emt 0:02:03] The position is equal.} Nd7 {[%emt 0:00:05]} 9. c4 {[%emt 0:01:17]} c6 {[%emt 0:00:01]} 10. Qc2 {[%emt 0:02:44]} Bh7 {[%emt 0:00:39]} 11. Nfd2 {[%emt 0:02:28]} f5 {[%emt 0:00:11]} 12. Nc3 {[%emt 0:04:11]} O-O {[%emt 0:00:44]} 13. Ne2 {[%emt 0:04:51]} Qh4 {[%emt 0:00:51]} 14. f4 {[%emt 0:05:28]} g5 {[%emt 0:01:17]} 15. Nf3 {[%emt 0:01:38]} Qh5 {[%emt 0:00:08]} 16. Bxe4 {[%emt 0:13:01]} fxe4 {[%emt 0:00:45]} 17. Ne5 {[%emt 0:04:48]} Nf6 {[%emt 0:01:56] [#]} 18. f5 {[%emt 0:07:11]} exf5 {[%emt 0:11:04]} 19. Ng3 {[%emt 0:00:13] A dynamic duo of knights.} Qh4 {[%emt 0:00:09]} 20. Nxf5 {[%emt 0:00:24]} Bxf5 {[%emt 0:00:07]} 21. Rxf5 {[%emt 0:00:09]} Nh5 $36 {[%emt 0:03:49][%mdl 2048] White is under pressure.} (21... g4 {simplifies} 22. Qf2 Qxf2+ 23. Rxf2 gxh3 24. gxh3 Nh5) 22. Raf1 {[%emt 0:05:21] Now White is beyond hope.} (22. Rxf8+ $11 {and White has nothing to worry.} Rxf8 23. Rf1 (23. Ng6 $2 Qg3 $19)) 22... Rxf5 $19 {[%emt 0:00:45]} 23. Rxf5 {[%emt 0:00:03] [#] Bc3 would now be deadly.} Qe1+ {[%emt 0:00:11]} 24. Kh2 {[%emt 0:01:38]} (24. Rf1 $142 Qxe3+ 25. Qf2 Qxf2+ 26. Rxf2) 24... Qg3+ {[%emt 0:00:37]} 25. Kh1 $2 {[%emt 0:03:55]} (25. Kg1 {was the only chance.} Qxe3+ 26. Qf2 Qxf2+ 27. Rxf2) 25... Qxe3 {[%emt 0:00:08] Hoping for ...Ng3+.} 26. Rf2 {[%emt 0:01:36]} Bxe5 {[%emt 0:06:03]} 27. dxe5 {[%emt 0:00:10]} d4 {[%emt 1:13:23]} (27... Rf8 $142 28. Rxf8+ Kxf8 29. Ba3+ (29. cxd5 $2 Ng3+ 30. Kh2 Ne2 $19) 29... Ke8 30. cxd5 Ng3+ (30... cxd5 $2 31. Qc8+ Kf7 32. Qf8+ Kg6 33. Qe8+ Kf5 34. Qxh5 $18) 31. Kh2 Ne2 (31... cxd5 $2 32. Qc8+ Kf7 33. e6+ Kf6 34. Bb2+ d4 35. Bxd4+ Qxd4 36. Qh8+ Kxe6 37. Qxd4 $18)) 28. c5 {[%emt 0:02:05] Strongly threatening Qc4+.} Rd8 {[%emt 0:00:00]} 29. e6 {[%emt 0:02:01] e7 would kill now.} Qd3 {[%emt 0:01:00]} 30. e7 {[%emt 0:02:58]} Re8 {[%emt 0:00:00]} 31. Rf8+ {[%emt 0:00:18]} Rxf8 {[%emt 0:00:00]} 32. exf8=Q+ {[%emt 0:00:07]} Kxf8 {[%emt 0:00:00][%mdl 4096] Endgame. KQB-KQN} 33. Qf2+ {[%emt 0:00:01]} Nf4 {[%emt 0:00:00]} 34. Bxd4 {[%emt 0:01:15]} Qe2 {[%emt 0:00:00]} 35. Qg1 {[%emt 0:04:14]} Nd3 {[%emt 0:00:00][%cal Of8f7]} 36. Bc3 $2 {[%emt 0:03:29]} (36. Qh2 Qd1+ (36... Qxa2 37. Qd6+ Ke8 38. Qe6+ Kf8 39. Qc8+ Ke7 40. Qxb7+ Ke8 41. Qxc6+ Kf8 42. Qc8+ Ke7 43. Qc7+ Ke8 44. Bf6) 37. Qg1) 36... Qf2 {[%emt 0:00:00]} ({Stronger than} 36... Qxa2 37. Qd4 Qxb3 38. Qd8+ Kf7 39. Qc7+ Ke8 40. Qb8+ Kf7 41. Qc7+ Ke8 42. Qc8+ Ke7 43. Qc7+ Ke8 $11) (36... g4 $142 {( -> ...g3)} 37. Kh2 gxh3 (37... Qxa2 38. Qd4 $11)) 37. Qd1 {[%emt 0:04:21]} Qxc5 {[%emt 0:00:00]} ({Weaker is} 37... Nxc5 38. Qd6+ Ke8 39. Be5 $11 (39. Qxh6 $2 {perishes.} Qf1+ 40. Kh2 Qf4+ 41. Kg1 Qc1+ 42. Kh2 Qxc3 $19)) 38. Qf1+ {[%emt 0:00:03]} Qf2 {[%emt 0:00:00]} 39. Qd1 {[%emt 0:00:04]} (39. Qxf2+ {was called for.} Nxf2+ 40. Kh2) 39... Qf4 {[%emt 0:00:00]} 40. Qa1 $2 {[%emt 0:01:48]} (40. Bd4) 40... Qc1+ {[%emt 0:00:00]} 41. Qxc1 {[%emt 0:01:00]} Nxc1 {[%emt 0:00:00] KB-KN} 42. Bd2 {[%emt 0:00:29]} Ne2 {[%emt 0:00:00]} 43. h4 $2 {[%emt 0:00:10]} (43. g4 {keeps fighting.}) 43... gxh4 {[%emt 0:00:00]} 44. Bxh6+ {[%emt 0:00:13]} Kf7 {[%emt 0:00:00]} 45. Bg5 {[%emt 0:00:12]} Ng3+ {[%emt 0:00:00]} 46. Kh2 {[%emt 0:00:04]} Nf5 {[%emt 0:00:00]} 47. Kh3 {[%emt 0:00:05]} e3 {[%emt 0:00:00]} 48. Kg4 {[%emt 0:00:12]} Kg6 {[%emt 0:00:00]} 49. b4 {[%emt 0:00:21]} e2 {[%emt 0:00:00]} 50. Bd2 {[%emt 0:00:06]} Nd4 {[%emt 0:00:00]} 51. Kxh4 {[%emt 0:00:14]} Nc2 {[%emt 0:00:00] Weighted Error Value: White=0.60/Black=0.37.  Loses game:     	White=1     	---        Mistake:       	White=7     	Black=2      Inaccurate:     	White=4     	Black=6      OK:         	White=10    	Black=16     Best:        	White=4     	Black=2} 0-1

[Event "Israel-ch Youth U8-18 2024"]
[Site "Kfar Saba"]
[Date "2024.04.17"]
[Round "3.6"]
[White "Abitbul, Matan"]
[Black "Uritsky, Yonathan"]
[Result "1-0"]
[ECO "B12"]
[WhiteElo "1916"]
[BlackElo "2231"]
[Annotator "TA"]
[PlyCount "99"]
[EventDate "2024.04.10"]
[EventType "swiss"]
[EventCountry "ISR"]
[SourceTitle "playchess.com"]
[Source "ChessBase"]
[SourceQuality "1"]
[TimeControl "5400+30"]

{[%evp 10,99,12,10,25,23,20,18,40,24,22,36,52,43,41,51,47,68,73,73,76,64,70,72,96,90,103,106,116,108,115,101,103,85,153,175,162,170,169,165,173,156,168,130,187,0,0,0,226,219,227,158,208,200,191,164,190,195,220,191,306,304,493,378,379,357,511,506,661,641,652,588,1224,876,724,716,845,880,881,870,961,708,29990,29991,29992,29991,29991,0,29992,29985,29993,29994]} 1. e4 {[%emt 0:00:01]} c6 {[%emt 0:00:01]} 2. d4 {[%emt 0:00:04]} d5 {[%emt 0:00:05]} 3. e5 {[%emt 0:00:02]} Bf5 {[%emt 0:00:06]} 4. Nd2 {[%emt 0:00:01]} e6 {[%emt 0:00:20]} 5. Nb3 {[%emt 0:00:01]} Nd7 {[%emt 0:00:14]} 6. Nf3 {[%emt 0:00:02]} h6 {[%emt 0:00:08]} 7. Be2 {[%emt 0:00:08]} Ne7 {[%emt 0:00:28]} 8. O-O {[%emt 0:00:02]} g5 {[%emt 0:00:11] The position is equal.} 9. a4 {[%emt 0:00:08]} Bg7 {[%emt 0:02:24]} 10. a5 {[%emt 0:00:01]} O-O {[%emt 0:01:17]} 11. c3 {[%emt 0:00:02]} f6 {[%emt 0:01:24]} 12. exf6 {[%emt 0:03:57]} Bxf6 {[%emt 0:00:02]} 13. Ne1 {[%emt 0:00:18][%cal Bf3e1,Be1d3,Bd3e5][%mdl 32]} Bh7 {[%emt 0:07:39]} 14. f4 {[%emt 0:03:16]} Nf5 {[%emt 0:01:20]} 15. Nd3 {[%emt 0:04:53]} Qe7 {[%emt 0:04:05]} 16. Re1 {[%emt 0:22:12]} b6 {[%emt 0:00:49]} 17. Bf3 {[%emt 0:00:03]} Qd6 {[%emt 0:02:48]} 18. Qe2 {[%emt 0:00:01]} Rae8 {[%emt 0:09:24]} 19. Ne5 {[%emt 0:09:17]} Re7 {[%emt 0:02:13]} 20. axb6 {[%emt 0:14:00]} axb6 {[%emt 0:00:01]} 21. Ra6 {[%emt 0:00:33] White is more active.} Bxe5 {[%emt 0:05:32]} (21... Qc7 $142) 22. dxe5 $16 {[%emt 0:01:07]} (22. fxe5 $6 Qc7 $14) 22... Qc7 {[%emt 0:00:00]} 23. fxg5 {[%emt 0:00:46]} hxg5 {[%emt 0:00:08]} 24. Bxg5 {[%emt 0:02:33]} Rg7 {[%emt 0:00:01]} 25. h4 {[%emt 0:00:50]} Ng3 {[%emt 0:02:00]} 26. Qe3 {[%emt 0:01:12]} Nf5 {[%emt 0:05:21] Inhibits Nd4.} (26... Be4 $16 {might work better.}) 27. Qe2 $2 {[%emt 0:00:15]} (27. Qf4 $18) 27... Ng3 $1 $11 {[%emt 0:02:00]} 28. Qe3 {[%emt 0:01:02] [#] aiming for Nd4.} Ne4 $2 {[%emt 0:01:12] White leaves nothing to chance now.} (28... Nf5 $1 $11 {and Black has nothing to worry.} 29. Qf4 c5) 29. Bxe4 $18 {[%emt 0:14:39]} Bxe4 {[%emt 0:00:01]} 30. Nd4 {[%emt 0:02:25]} Nc5 {[%emt 0:02:46]} (30... Qxe5 $16 31. Qh3 (31. Nxc6 Qd6 $16) 31... Re8) 31. Raa1 {[%emt 0:00:52][%cal Ba6a1,Ba1f1,Bf1f6,Bf6h6][%mdl 32] And now b4 would win.} Qxe5 {[%emt 0:03:08]} 32. Rf1 {[%emt 0:03:14]} (32. Nxc6 $6 Qd6 $16) 32... Rxf1+ {[%emt 0:02:45]} 33. Rxf1 {[%emt 0:00:13]} Qd6 {[%emt 0:00:22]} 34. Rf6 {[%emt 0:03:03] [#] Strongly threatening b4.} Ra7 {[%emt 0:01:35]} (34... Rg6 {was called for.} 35. Rxg6+ Bxg6) 35. Bf4 {[%emt 0:02:58]} Qd8 {[%emt 0:03:48]} (35... Qd7 36. Qg3+ Qg7) 36. Rh6 {[%emt 0:06:53]} (36. Nxc6 $2 Ra1+ (36... Qxf6 37. Nxa7 Qxh4 38. b4 $11) 37. Kh2 Qxf6 $19) 36... Rg7 {[%emt 0:00:59]} 37. Bg5 {[%emt 0:00:28]} (37. Nxc6 $2 Rxg2+ 38. Kf1 Qa8 $19) 37... Qa8 {[%emt 0:05:53]} (37... Qe8 $142 38. Bf6 Rxg2+ 39. Kf1 Rg6 40. Rh8+ Kf7) 38. b4 {[%emt 0:00:56]} Nd3 {[%emt 0:06:44]} 39. Nxe6 {[%emt 0:02:59]} Qa1+ {[%emt 0:06:49]} 40. Kh2 {[%emt 0:00:33][%cal Bg1h2,Bh2h3,Bh3g4][%mdl 32] Threatening mate with Qg3.} Ne5 {[%emt 0:05:26]} 41. Qg3 {[%emt 0:02:11] Against Ng4+} Qb2 {[%emt 0:00:01]} 42. Rf6 {[%emt 0:01:46]} (42. Qxe5 $2 Qxg2#) 42... Bxg2 {[%emt 0:06:07]} 43. Rf8+ {[%emt 0:01:12]} (43. Qxe5 {gets mated.} Be4+) (43. Qxg2 Ng4+ 44. Kh3 Qxg2+ 45. Kxg2 Nxf6 $16) (43. Nxg7 Bf3+ 44. Kh3 (44. Kg1 Qb1+) 44... Bg4+ $17 (44... Qxc3 $2 {loses.} 45. Ne8 $18) (44... Qxc3 $2 45. Ne8 $18)) 43... Kh7 {[%emt 0:00:02]} 44. Qxg2 {[%emt 0:00:38]} Ng4+ {[%emt 0:00:55]} 45. Kh3 {[%emt 0:00:23]} Qxc3+ {[%emt 0:00:30]} 46. Kxg4 {[%emt 0:00:31]} Rg6 {[%emt 0:01:07]} 47. Rf7+ {[%emt 0:00:21]} Kg8 {[%emt 0:00:07]} 48. Rf8+ {[%emt 0:00:02]} Kh7 {[%emt 0:00:06]} 49. Nf4 {[%emt 0:00:56]} Qxb4 {[%emt 0:00:30]} 50. Qc2 {[%emt 0:00:26] Weighted Error Value: White=0.41/Black=0.55.  Loses game:     	---       	Black=1      Missed win:     	White=1     	---        Mistake:       	---       	Black=6      Inaccurate:     	White=1     	Black=1      OK:         	White=15    	Black=11     Best:        	White=2     	---        Strong:       	---       	Black=1} 1-0

[Event "Israel-ch Youth U8-18 2024"]
[Site "Kfar Saba"]
[Date "2024.04.17"]
[Round "3.7"]
[White "Berlad, Asaf"]
[Black "Birka, Elia"]
[Result "1/2-1/2"]
[ECO "B14"]
[WhiteElo "1900"]
[BlackElo "1954"]
[Annotator "TA"]
[PlyCount "86"]
[EventDate "2024.04.10"]
[EventType "swiss"]
[EventCountry "ISR"]
[SourceTitle "playchess.com"]
[Source "ChessBase"]
[SourceQuality "1"]
[TimeControl "5400+30"]

{[%evp 18,86,22,0,2,16,80,84,130,0,-7,-14,-15,-60,-26,-25,-19,-46,-54,-45,-51,-42,-43,-50,-55,-39,-35,-28,-33,-38,0,0,0,0,0,0,0,0,0,0,0,0,0,0,0,0,36,34,28,33,47,0,0,0,41,33,41,47,44,38,40,22,23,0,147,0,0,0,0,0,0]} 1. d4 {[%emt 0:00:13]} Nf6 {[%emt 0:00:57]} 2. c4 {[%emt 0:00:07]} e6 {[%emt 0:00:17]} 3. Nc3 {[%emt 0:00:13]} Bb4 {[%emt 0:00:19]} 4. e3 {[%emt 0:00:18]} O-O {[%emt 0:00:37]} 5. Bd3 {[%emt 0:00:11]} d5 {[%emt 0:00:39]} 6. Nf3 {[%emt 0:00:13]} dxc4 {[%emt 0:00:35]} 7. Bxc4 {[%emt 0:00:17]} c5 {[%emt 0:00:18]} 8. O-O {[%emt 0:00:33]} cxd4 {[%emt 0:00:58]} 9. exd4 {[%emt 0:01:59]} Nc6 {[%emt 0:00:24]} 10. Bg5 {[%emt 0:04:10]} h6 {[%emt 0:01:59]} 11. Bh4 {[%emt 0:01:42]} b6 {[%emt 0:00:58] [#]} (11... Be7 $11) 12. Qa4 $1 $16 {[%emt 0:04:18] Hoping for Bxf6.} Bd7 {[%emt 0:17:49]} ({Black should play} 12... Bb7) 13. Bb5 {[%emt 0:09:35] White has more active pieces.} (13. d5 $16 exd5 14. Nxd5) 13... Bxc3 $11 {[%emt 0:00:20]} 14. bxc3 {[%emt 0:00:13][%cal Oh4f6] And now Bxf6! would win.} Na5 {[%emt 0:07:05]} 15. Rab1 {[%emt 0:13:02]} Bxb5 {[%emt 0:01:34]} 16. Qxb5 {[%emt 0:00:11]} Rc8 {[%emt 0:04:07]} 17. Rfc1 {[%emt 0:01:38]} Qd5 {[%emt 0:12:38] ...Qxb5 is the strong threat.} 18. Bxf6 {[%emt 0:00:31]} Qxb5 {[%emt 0:00:16]} 19. Rxb5 {[%emt 0:00:08]} gxf6 {[%emt 0:00:06]} 20. Kf1 {[%emt 0:00:52]} Rc4 {[%emt 0:02:57]} 21. Ke2 {[%emt 0:02:09]} Rfc8 {[%emt 0:00:18]} 22. Kd3 {[%emt 0:01:22]} Ra4 {[%emt 0:01:32]} 23. Rc2 {[%emt 0:02:23]} Nb7 {[%emt 0:05:56]} 24. Nd2 {[%emt 0:04:53]} Nd6 {[%emt 0:00:11]} 25. Rb4 {[%emt 0:00:08]} Ra3 {[%emt 0:04:09]} (25... Rxb4 {simplifies} 26. cxb4 Rxc2 27. Kxc2 Kf8) 26. Rb3 {[%emt 0:02:54]} Ra4 {[%emt 0:00:15]} 27. Rb4 {[%emt 0:03:34]} Ra3 {[%emt 0:00:31]} 28. f3 {[%emt 0:01:49]} f5 {[%emt 0:02:18]} 29. Rb3 {[%emt 0:45:24]} Ra5 {[%emt 0:01:13]} 30. Rb4 {[%emt 0:00:00]} Kf8 {[%emt 0:04:13]} 31. a4 {[%emt 0:00:00]} e5 {[%emt 0:04:54][%cal Be6e5,Be5e4][%mdl 32]} 32. Nb3 {[%emt 0:00:00]} Rd5 {[%emt 0:00:45]} 33. c4 {[%emt 0:00:00]} e4+ {[%emt 0:00:59]} 34. Kd2 {[%emt 0:00:00]} (34. Ke2 $1 $14) 34... a5 $1 {[%emt 0:00:13]} 35. cxd5 {[%emt 0:00:00]} (35. Rxb6 $2 {loses.} Nxc4+ (35... Rxc4 36. Rb8+ Ke7 37. Rb7+ Ke8 38. Rxc4 $14) 36. Rxc4 Rxc4 37. fxe4 fxe4 $19) 35... Rxc2+ {[%emt 0:00:05]} 36. Kxc2 {[%emt 0:00:00]} axb4 {[%emt 0:00:04][%mdl 4096] Endgame. KN-KN} 37. Nc1 {[%emt 0:00:00]} Nc4 {[%emt 0:04:10]} 38. Kb3 {[%emt 0:00:00][%csl LRb4,LRc4]} Ne3 {[%emt 0:00:33][%csl LRd5,LRg2]} 39. fxe4 {[%emt 0:00:00]} fxe4 {[%emt 0:00:10]} 40. Kxb4 {[%emt 0:00:00] aiming for d6.} Nxd5+ {[%emt 0:01:27]} (40... Ke7 $11 {keeps the balance.}) 41. Kb5 {[%emt 0:00:00]} (41. Kc4 $16 Ne3+ 42. Kb5) 41... Ke7 {[%emt 0:22:11] The position is equal.} 42. Kc6 {[%emt 0:00:00]} Nc3 {[%emt 0:00:00]} 43. Kxb6 {[%emt 0:00:00] [#] Threatens to win with a5.} Nxa4+ {[%emt 0:00:00] Weighted Error Value: White=0.19 (very precise) /Black=0.17 (very precise) .  Mistake:       	White=3     	Black=3      Inaccurate:     	White=2     	Black=4      OK:         	White=12    	Black=16     Best:        	White=3     	Black=2      Strong:       	White=1     	Black=1} 1/2-1/2